Cogmind - Beta 10.2 @@@ ROGUE MODE // 2021.08.30 @ 06:43:33 Player: cavemonk Result: Destroyed by Lightning with EMDS Performance ------------- Evolutions (4) 2000 Regions Visited (17) 3400 Robots Destroyed (143) 715 Value Destroyed (5041) 5041 Prototype IDs (43) 860 Alien Tech Used (0) 0 Bonus (924) 924 TOTAL SCORE: 12940 Bonus ------- High Alert Combat Kills 75 Follower Combat Kills 493 Network Hubs Disabled 200 Aligned with FarCom 300 Met R17 at Cetus 500 Friendly Fire -644 Cogmind --------- Core Integrity 0/850 Matter 16/300 Energy 99/100 System Corruption 35% Temperature Cool (9) Movement Core (50) Location -6/Hub_04(d) Parts ------- > --- POWER (1) -------- (None) > --- PROPULSION (6) --- (None) > --- UTILITY (6) ------ (None) > --- WEAPON (2) ------- (None) > --- INVENTORY (4) ---- Light Antimatter Reactor KE Penetrator Advanced EMP Blaster Proton Missile Launcher Peak State ------------ > --- POWER ------------ Antimatter Reactor > --- PROPULSION ------- Centrium Heavy Treads Centrium Heavy Treads Centrium Heavy Treads > --- UTILITY ---------- Advanced Heat Sink Advanced Heat Sink High-capacity Storage Unit Advanced Signal Interpreter Improved Armor Integrity Analyzer Centrium Medium Armor Plating > --- WEAPON ----------- Firepult > --- INVENTORY -------- Cooled Deuterium Engine Centrium Heavy Treads High-capacity Storage Unit High-capacity Storage Unit Improved Transmission Jammer Cooled Pulse Rifle Improved KE Penetrator Advanced EMP Blaster Proton Missile Launcher Long-range Missile Launcher Chainsword [Rating: 115] Favorites ----------- Power Cooled Deuterium Engine Engine Cooled Deuterium Engine Power Core Nuclear Core Reactor Antimatter Reactor Propulsion Light Treads Treads Light Treads Leg Aluminum Leg Wheel Wheel Flight Unit Flying Fortress v7 Utility Large Storage Unit Device Advanced Sensor Array Storage Large Storage Unit Processor Advanced Signal Interpreter Protection Improved Medium Armor Plating Weapon Light EM Pulse Cannon Energy Gun Cooled Pulse Rifle Energy Cannon Light EM Pulse Cannon Ballistic Gun Improved KE Penetrator Ballistic Cannon Light Cannon Launcher Mini Grenade Launcher Special Weapon Mining Laser Impact Weapon Powered Hammer Slashing Weapon Chainsword Build | -11 -10 -10 -10 -9 -8 -7 -7 -7 -7 -7 -7 -6 -6 -6 -6 -6 -6 ------- Run | Scr Mat Min Exi Min Mat Fac Was Fac Low Low Zio Pro Fac Ext Cet Arc Hub Slots Evolved 8 | . . . . . 4 2 . . . . . . 2 . . . . Power . | . . . . . . . . . . . . . . . . . . Propulsion 4 | . . . . . 2 2 . . . . . . . . . . . Utility 4 | . . . . . 2 . . . . . . . 2 . . . . Weapon . | . . . . . . . . . . . . . . . . . . Parts Attached 198 | 4 24 6 5 2 41 21 . 1 11 . 2 10 20 16 20 6 9 Power 13 | . 3 . 1 . 2 5 . . . . . . . . 1 1 . Engine 10 | . 3 . 1 . 1 4 . . . . . . . . . 1 . Core 2 | . . . . . 1 1 . . . . . . . . . . . Reactor 1 | . . . . . . . . . . . . . . . 1 . . Propulsion 29 | 2 5 . 2 2 10 2 . . 1 . . . 1 . 3 . 1 Treads 20 | 1 4 . 2 2 7 . . . . . . . . . 3 . 1 Leg . | . . . . . . . . . . . . . . . . . . Wheel 2 | 1 1 . . . . . . . . . . . . . . . . Hover . | . . . . . . . . . . . . . . . . . . Flight 7 | . . . . . 3 2 . . 1 . . . 1 . . . . Utility 58 | 1 4 4 . . 11 5 . 1 . . . . 12 5 6 2 7 Device 21 | 1 1 1 . . 4 . . . . . . . 5 2 4 1 2 Storage 11 | . 3 3 . . 2 1 . . . . . . 1 1 . . . Processor 4 | . . . . . 1 1 . . . . . . 1 . . . 1 Hackware . | . . . . . . . . . . . . . . . . . . Protection 22 | . . . . . 4 3 . 1 . . . . 5 2 2 1 4 Artifact . | . . . . . . . . . . . . . . . . . . Weapon 98 | 1 12 2 2 . 18 9 . . 10 . 2 10 7 11 10 3 1 Energy Gun 12 | . . . . . 2 3 . . . . 1 1 1 . 3 1 . Energy Cannon 40 | . 2 1 2 . 10 3 . . 5 . 1 3 4 5 4 . . Ballistic Gun 11 | 1 4 . . . 1 1 . . . . . . . . 2 2 . Ballistic Cannon 3 | . 3 . . . . . . . . . . . . . . . . Launcher 22 | . 2 1 . . 5 . . . 2 . . 5 . 5 1 . 1 Special Weapon 1 | . 1 . . . . . . . . . . . . . . . . Impact Weapon 8 | . . . . . . 2 . . 3 . . 1 2 . . . . Slashing Weapon 1 | . . . . . . . . . . . . . . 1 . . . Piercing Weapon . | . . . . . . . . . . . . . . . . . . Special Melee Weapon . | . . . . . . . . . . . . . . . . . . Unidentified Prototypes 14 | . . 1 . . 4 5 . . . . . . . . 4 . . Parts Lost 24 | . 1 2 . . 1 . . . . . . . . . 9 3 8 Power 2 | . . . . . . . . . . . . . . . 1 1 . Propulsion 5 | . . . . . 1 . . . . . . . . . 1 . 3 Utility 11 | . 1 . . . . . . . . . . . . . 5 1 4 Weapon 6 | . . 2 . . . . . . . . . . . . 2 1 1 Highest Loss Streak 8 | . 1 2 . . 1 . . . . . . . . . 8 3 8 Average Slot Usage (%) 87 | . 98 94 99 100 96 75 76 76 76 76 73 76 73 79 72 78 78 Engine 7 | . 14 14 14 14 2 6 7 7 7 7 7 7 6 6 1 4 5 Core 1 | . . . . . 6 . . . . . . . . . . . . Treads 18 | . 26 28 28 28 30 . . . . . . . . . 8 20 19 Flight 8 | . . . . . 3 23 23 23 23 23 23 23 20 20 8 . . Device 4 | . 1 . . . 3 7 7 7 7 7 7 7 10 7 11 8 5 Storage 15 | . 26 27 28 28 18 7 7 7 7 7 7 7 6 6 6 6 5 Processor 5 | . . . . . 5 7 7 7 7 7 7 7 6 13 13 13 12 Protection 5 | . . . . . 6 7 7 7 7 7 7 7 8 10 5 9 12 Energy Gun 1 | . . . . . 1 6 7 7 7 7 5 3 . . 3 3 . Energy Cannon 10 | . 6 21 27 28 10 6 7 7 6 7 5 4 7 7 4 . . Ballistic Gun 1 | . 8 . . . . . . . . . . . . . 2 8 12 Ballistic Cannon 1 | . 11 . . . . . . . . . . . . . . . . Launcher 2 | . . 1 . . 6 . . . . . . 6 . 5 . . . Naked Turns 2 | . . . . . . . . . . . . . . . . . 2 Heaviest Build 80 | 12 45 45 45 45 58 63 63 63 62 62 62 64 80 71 75 69 72 Greatest Support 240 | 20 40 40 40 43 83 84 86 86 86 86 80 80 80 80 240 240 240 Greatest Overweight (x) 4 | 1 4 1 1 1 4 . . . . . . . . . . . . Average Overweight (x) . | . . . . 1 . . . . . . . . . . . . . Largest Inventory Capacity 16 | 6 16 16 16 16 16 16 12 12 12 12 12 12 12 12 12 12 12 Average Capacity 13 | 6 10 15 16 16 16 11 12 12 12 12 12 12 12 12 12 12 11 Most Carried 16 | 6 16 16 16 16 16 16 12 12 12 12 12 12 12 12 12 12 12 Average Carried 13 | 4 9 15 15 15 15 11 12 12 12 12 12 12 11 11 10 11 11 Final Capacity 16 | 6 16 16 16 16 16 12 12 12 12 12 12 12 12 12 12 12 4 Final Carried 16 | 5 16 16 16 16 16 12 12 12 12 12 12 12 12 11 12 12 4 Class Distribution -------------------- 90% | Mutant 8% | Scavenger-Mutant Dominant Class ---------------- Mutant | -10/Materials Mutant | -10/Mines Mutant | -10/Exiles Mutant | -9/Mines Mutant | -8/Materials Mutant | -7/Factory Mutant | -7/Waste Mutant | -7/Factory Mutant | -7/Lower Caves Mutant | -7/Lower Caves Mutant | -7/Zion Mutant | -6/Proximity Caves Mutant | -6/Factory Mutant | -6/Extension Scavenger-Mutant | -6/Cetus Scavenger-Mutant | -6/Archives Scavenger-Mutant | -6/Hub_04(d) Resources | -11 -10 -10 -10 -9 -8 -7 -7 -7 -7 -7 -7 -6 -6 -6 -6 -6 -6 ----------- Run | Scr Mat Min Exi Min Mat Fac Was Fac Low Low Zio Pro Fac Ext Cet Arc Hub Matter Collected 3579 | 243 542 75 109 10 681 44 . . 361 42 29 170 180 290 343 105 355 Remotely 167 | . . . . . 167 . . . . . . . . . . . . Salvage Created 6731 | 157 524 157 . 120 1488 101 . . 369 . . 163 484 565 714 320 1569 Parts 269 | 9 28 7 . 5 78 4 . . 8 . . 6 16 26 15 9 58 Haulers Intercepted 16 | . 2 . . . 6 2 . . . . . . 2 . . . 4 Recyclers Shooed 3 | . 1 1 . . 1 . . . . . . . . . . . . Parts Field Recycled . | . . . . . . . . . . . . . . . . . . Retrieved Matter . | . . . . . . . . . . . . . . . . . . Parts Self-Destructed 6 | . . . . . . . . . 2 . . 4 . . . . . Prevented 9 | . . . . . . . . . 4 . . 5 . . . . . Kills | -11 -10 -10 -10 -9 -8 -7 -7 -7 -7 -7 -7 -6 -6 -6 -6 -6 -6 ------- Run | Scr Mat Min Exi Min Mat Fac Was Fac Low Low Zio Pro Fac Ext Cet Arc Hub Combat Hostiles Destroyed 97 | . 10 15 . 2 25 . . . 3 . . 3 1 8 14 4 12 Guns 22 | . 5 . . . 1 . . . . . . . . . . 4 12 Cannons 15 | . 2 . . 1 9 . . . . . . . 1 . 2 . . AOE 49 | . 3 15 . . 14 . . . 2 . . 2 . 6 7 . . Classes Destroyed 16 | 2 5 2 . 1 3 . . . . . . . 1 2 . . . Worker 14 | . 1 . . . 3 . . . . . . . 3 1 . . 6 Builder 4 | . . 1 . . 1 . . . . . . . . 2 . . . Tunneler 2 | 2 . . . . . . . . . . . . . . . . . Hauler 16 | . 2 . . . 6 2 . . . . . . 2 . . . 4 Recycler 8 | 1 1 1 . . 3 . . . . . . . 1 . . . 1 Mechanic 1 | . . . . . 1 . . . . . . . . . . . . Operator 2 | . . . . . . . . . . . . . . 1 . . 1 Watcher 12 | . 2 . . . 3 . . . . . . . 2 1 1 . 3 Swarmer 16 | . 3 . . . 7 . . . . . . 1 . 2 3 . . Grunt 37 | . 7 1 . . 13 . . . 3 . . 1 . 4 2 . 6 Brawler 1 | . . . . . . . . . . . . . . . 1 . . Duelist 1 | . . . . . 1 . . . . . . . . . . . . Sentry 14 | . . . . 2 3 . . . . . . 1 . . . 4 4 Hunter 1 | . . . . . 1 . . . . . . . . . . . . Programmer 1 | . . . . . . . . . . . . . 1 . . . . Cetus Guard 8 | . . . . . . . . . . . . . . . 8 . . Lightning 2 | . . . . . . . . . . . . . . . . . 2 Packrat 3 | . . . . . . . . . 3 . . . . . . . . Assembled 15 | . . 15 . . . . . . . . . . . . . . . Thug 2 | . . 1 . . . . . . . . . . . 1 . . . Savage 1 | . . . . . . . . . . . . . . 1 . . . Best Kill Streak 16 | 2 3 16 . 2 7 1 . . 2 . . 2 3 4 4 3 7 Combat Bots Only 15 | . 3 15 . 2 6 . . . 2 . . 2 1 4 4 3 4 Max Kills in Single Turn 4 | 1 1 4 . 1 4 1 . . 1 . . 1 2 2 2 2 4 Gunslinging . | . . . . . . . . . . . . . . . . . . Exploded 4 | . 1 4 . . 3 . . . 1 . . 1 . 2 2 . . Melee . | . . . . . . . . . . . . . . . . . . Uniques/NPCs Destroyed . | . . . . . . . . . . . . . . . . . . Combat | -11 -10 -10 -10 -9 -8 -7 -7 -7 -7 -7 -7 -6 -6 -6 -6 -6 -6 -------- Run | Scr Mat Min Exi Min Mat Fac Was Fac Low Low Zio Pro Fac Ext Cet Arc Hub Damage Taken 9922 | . 523 374 . 85 1262 43 . 14 306 . . 279 46 351 1979 940 3720 Core 1547 | . 194 29 . 13 307 6 . . 115 . . 11 11 11 495 . 355 Absorbed by Shields 329 | . . . . . . . . . . . . . . 121 . . 208 Reduced by Siege Mode 496 | . . . . . . . . . . . . . . . . . 496 Core Remaining (%) 57 | 100 . . . 5 44 . . . . . . 81 . . . . . Volleys Fired 364 | 5 39 11 . 5 66 19 . 1 26 . . 13 31 36 24 15 73 Largest 2 | 2 2 2 . 2 2 2 . 1 2 . . 2 2 2 2 2 2 Hottest 250 | 80 112 112 . 112 136 90 . 90 90 . . 90 180 180 250 116 68 Shots Fired 597 | 10 61 12 . 10 128 24 . 1 33 . . 18 56 54 30 24 136 Gun 242 | 10 42 . . . 15 7 . . 7 . . . . . 5 24 132 Cannon 264 | . 12 2 . 10 93 17 . 1 19 . . 4 56 30 20 . . Launcher 89 | . 5 10 . . 20 . . . 7 . . 14 . 24 5 . 4 Special 2 | . 2 . . . . . . . . . . . . . . . . Kinetic 203 | 1 52 . . . . . . . . . . . . . 3 15 132 Thermal 254 | 4 2 . . . 76 24 . 1 26 . . 4 56 30 22 9 . Explosive 44 | . 5 10 . . 20 . . . . . . . . . 5 . 4 Electromagnetic 96 | 5 2 2 . 10 32 . . . 7 . . 14 . 24 . . . Robot Hit Streak 22 | 7 18 13 . 22 17 4 . . 10 . . . 6 2 14 9 22 Robot Miss Streak 5 | 2 2 . . 1 2 2 . . 1 . . . 2 3 2 2 5 Penetration Max 1 | . . . . . . . . . . . . . . . . 1 1 Secondary Targets 2 | . . . . . . . . . . . . . . . . . 2 Max Gunslinging Chain 1 | . . . . . . . . . . . . . . . . . 1 Shots Hit Robots 341 | 7 49 4 . 9 81 16 . . 11 . . . 16 7 14 20 107 Core Hits 316 | 4 24 38 . 3 68 1 . . 14 . . 4 8 29 30 11 82 Critical Hits 25 | . . . . . 6 . . . . . . . . . . 2 17 Critical Kills 8 | . . . . . 1 . . . . . . . . . . 1 6 Critical Parts Destroyed 17 | . . . . . 5 . . . . . . . . . . 1 11 Melee Attacks 35 | . . . . . . 14 . . 4 . . . 16 1 . . . Impact 34 | . . . . . . 14 . . 4 . . . 16 . . . . Slashing 1 | . . . . . . . . . . . . . . 1 . . . Piercing . | . . . . . . . . . . . . . . . . . . Sneak Attacks 4 | . . . . . . 1 . . . . . . 3 . . . . Combat Hostiles . | . . . . . . . . . . . . . . . . . . Follow-up Attacks . | . . . . . . . . . . . . . . . . . . Damage Inflicted 16494 | 103 1054 1263 . 182 3028 453 . . 611 . . 240 668 1771 1600 686 4835 Guns 4248 | 103 440 . . . 281 51 . . 114 . . . . . 63 686 2510 Cannons 2780 | . 172 23 . 168 1490 53 . . 106 . . . 261 161 346 . . Explosions 8418 | . 368 1224 . . 1180 . . . 391 . . 240 . 1610 1191 . 2214 Melee 756 | . . . . . . 349 . . . . . . 407 . . . . Ramming 268 | . 50 16 . 14 77 . . . . . . . . . . . 111 Kinetic 3589 | . 572 . . . . . . . . . . . . . 27 480 2510 Thermal 3724 | 33 24 183 . . 1266 104 . . 277 . . . 261 484 824 206 62 Explosive 4936 | . 368 1041 . . 1135 . . . . . . . . . 749 . 1643 Electromagnetic 3221 | 70 40 23 . 168 550 . . . 334 . . 240 . 1287 . . 509 Impact 756 | . . . . . . 349 . . . . . . 407 . . . . Slashing . | . . . . . . . . . . . . . . . . . . Piercing . | . . . . . . . . . . . . . . . . . . Highest Corruption 34 | . . . . . . . 10 10 10 10 10 . . 1 1 1 34 Average Corruption 4 | . . . . . . . 10 10 10 10 10 . . 1 1 1 2 Corruption Purged . | . . . . . . . . . . . . . . . . . . Effects 69 | . . . . . . . . 12 27 12 1 . . 1 2 . 14 Message Errors 10 | . . . . . . . . 2 . 3 . . . . . . 5 Matter Fused 10 | . . . . . . . . 2 5 1 1 . . . . . 1 Heat Flow Errors 3 | . . . . . . . . 2 1 . . . . . . . . Energy Discharges 12 | . . . . . . . . 1 4 4 . . . . 2 . 1 Parts Rejected 1 | . . . . . . . . . 1 . . . . . . . . Data Loss (minor) 3 | . . . . . . . . . 1 1 . . . 1 . . . Data Loss (major) 1 | . . . . . . . . . . 1 . . . . . . . Misfires 1 | . . . . . . . . . 1 . . . . . . . . Alerts 1 | . . . . . . . . . 1 . . . . . . . . Misdirections 13 | . . . . . . . . 5 6 2 . . . . . . . Targeting Errors 10 | . . . . . . . . . 7 . . . . . . . 3 Weapon Failures 4 | . . . . . . . . . . . . . . . . . 4 Overload Shots 35 | . . . . . . 3 . 1 2 . . 3 8 12 6 . . Effects 2 | . . . . . . 1 . . . . . . . . 1 . . Energy Bleed 1 | . . . . . . 1 . . . . . . . . . . . Heat Surge 1 | . . . . . . . . . . . . . . . 1 . . Overflow Damage 466 | . 48 5 . . 53 22 . . 23 . . 4 73 26 33 . 179 Projectiles 60 | . . . . . . . . . 23 . . . . 4 33 . . Explosions 311 | . 48 5 . . 53 . . . . . . 4 . 22 . . 179 Melee 95 | . . . . . . 22 . . . . . . 73 . . . . Knockbacks 3 | . 2 . . . 1 . . . . . . . . . . . . Impact 1 | . . . . . 1 . . . . . . . . . . . . Kinetic 2 | . 2 . . . . . . . . . . . . . . . . Secondary . | . . . . . . . . . . . . . . . . . . Self-Inflicted Damage 445 | . 54 62 . . 30 . . . 4 . . 15 . 77 105 . 98 Shots 19 | . 2 2 . . 1 . . . 1 . . 1 . 4 7 . 1 Rammed 42 | . 15 3 . 2 14 . . . . . . . . . . . 8 Targets Rammed 46 | . 17 4 . 2 15 . . . . . . . . . . . 8 Kicked . | . . . . . . . . . . . . . . . . . . Crushed 4 | . 2 1 . . 1 . . . . . . . . . . . . Highest Temperature 591 | 74 51 63 . 186 564 79 . 295 251 . . 150 267 201 591 46 10 Average Temperature 108 | 36 16 36 . 85 149 34 . 184 100 . . 40 53 60 202 20 4 Received Heat Transfer 1393 | . 186 15 . 27 450 21 . . 84 . . 24 . 44 234 180 128 Effects 34 | . . . . . 22 . . 2 . . . . . . 10 . . Shutdowns 4 | . . . . . 4 . . . . . . . . . . . . Energy Bleed 4 | . . . . . 3 . . . . . . . . . 1 . . Interference 6 | . . . . . 4 . . 2 . . . . . . . . . Matter Decay 4 | . . . . . 2 . . . . . . . . . 2 . . Damage (minor) 1 | . . . . . 1 . . . . . . . . . . . . Damage (major) 11 | . . . . . 6 . . . . . . . . . 5 . . Damage (core) 4 | . . . . . 2 . . . . . . . . . 2 . . Siege Activations 2 | . . . . . . . . . . . . . . . . . 2 Total Turns 132 | . . . . . . . . . . . . . . . . . 132 Longest Duration 94 | . . . . . . . . . . . . . . . . . 94 Robots Corrupted 6 | . . . . 1 1 . . . 1 . . 1 . 2 . . . Combat Hostiles 6 | . . . . 1 1 . . . 1 . . 1 . 2 . . . Parts Fried 21 | . . . . 2 6 2 . . . . . 2 3 6 . . . Impact Corruptions 6 | . . . . . . 2 . . . . . . 4 . . . . Robots Melted 5 | . . . . . . . . . . . . . . . 5 . . Combat Hostiles 5 | . . . . . . . . . . . . . . . 5 . . Parts Melted 22 | . . . . . 2 1 . . . . . . 2 . 16 1 . Heat Transferred 7704 | 75 50 150 . . 2294 185 . . 470 . . . 309 524 3264 333 50 Parts Sabotaged . | . . . . . . . . . . . . . . . . . . Parts Stolen . | . . . . . . . . . . . . . . . . . . Parts Stripped . | . . . . . . . . . . . . . . . . . . Power Chain Reactions 9 | . . 1 . . . . . . 1 . . 1 . 5 . . 1 Missiles Intercepted . | . . . . . . . . . . . . . . . . . . Alert | -11 -10 -10 -10 -9 -8 -7 -7 -7 -7 -7 -7 -6 -6 -6 -6 -6 -6 ------- Run | Scr Mat Min Exi Min Mat Fac Was Fac Low Low Zio Pro Fac Ext Cet Arc Hub Peak Influence 624 | 15 136 123 . 40 330 271 38 87 . . . . 319 417 368 194 624 Initial 140 | . 9 9 . . 15 140 23 26 . . . . 25 76 124 67 67 Average 126 | 9 36 37 . 7 166 106 28 50 . . . . 191 169 215 157 227 Maximum Alert Level 2 | . . . . . 1 1 . . . . . . 2 2 1 . 2 Low Security (%) 76 | 100 100 100 . 100 68 93 100 100 . . . . 44 62 55 100 35 Level 1 23 | . . . . . 31 6 . . . . . . 55 36 44 . 52 Level 2 . | . . . . . . . . . . . . . . 1 . . 12 Level 3 . | . . . . . . . . . . . . . . . . . . Level 4 . | . . . . . . . . . . . . . . . . . . Level 5 . | . . . . . . . . . . . . . . . . . . High Security . | . . . . . . . . . . . . . . . . . . Max Security . | . . . . . . . . . . . . . . . . . . Squads Dispatched 18 | . 1 . . . 2 3 . . . . . . 1 5 . . 6 Investigation 4 | . 1 . . . 1 . . . . . . . . 2 . . . Extermination 3 | . . . . . . 2 . . . . . . 1 . . . . Reinforcement 9 | . . . . . 1 1 . . . . . . . 3 . . 4 Assault . | . . . . . . . . . . . . . . . . . . Garrison 2 | . . . . . . . . . . . . . . . . . 2 Intercept . | . . . . . . . . . . . . . . . . . . Construction Impeded 4 | . . . . . 1 . . . . . . . . 2 . . 1 Haulers Reinforced 2 | . . . . . . 1 . . . . . . . . . . 1 Stealth | -11 -10 -10 -10 -9 -8 -7 -7 -7 -7 -7 -7 -6 -6 -6 -6 -6 -6 --------- Run | Scr Mat Min Exi Min Mat Fac Was Fac Low Low Zio Pro Fac Ext Cet Arc Hub Distress Signals 16 | . 1 . . 1 4 . . . . . . . . 7 2 . 1 Communications Jammed 1 | . . . . . . . . . . . . . . . . . 1 Distress Signals 1 | . . . . . . . . . . . . . . . . . 1 Times Spotted 211 | . 24 23 . 2 34 8 6 2 6 2 . 12 4 29 16 4 39 Peak Tracking Total 19 | . 4 19 . 2 7 4 6 2 4 1 . 5 2 8 8 2 16 Tactical Retreats 20 | . . . . . 1 2 . . 3 1 . 6 . 6 . . 1 Traps | -11 -10 -10 -10 -9 -8 -7 -7 -7 -7 -7 -7 -6 -6 -6 -6 -6 -6 ------- Run | Scr Mat Min Exi Min Mat Fac Was Fac Low Low Zio Pro Fac Ext Cet Arc Hub Traps Triggered 9 | . 1 . . . . 5 . . . . . 2 . 1 . . . Indirectly 3 | . . . . . . . . . . . . 2 . 1 . . . Trap Hack Attempts . | . . . . . . . . . . . . . . . . . . Triggered . | . . . . . . . . . . . . . . . . . . Disarmed . | . . . . . . . . . . . . . . . . . . Reprogrammed . | . . . . . . . . . . . . . . . . . . Reused . | . . . . . . . . . . . . . . . . . . Traps Extracted . | . . . . . . . . . . . . . . . . . . Installed . | . . . . . . . . . . . . . . . . . . Triggered 4 | . . . . . . . . . . . . 4 . . . . . Machines | -11 -10 -10 -10 -9 -8 -7 -7 -7 -7 -7 -7 -6 -6 -6 -6 -6 -6 ---------- Run | Scr Mat Min Exi Min Mat Fac Was Fac Low Low Zio Pro Fac Ext Cet Arc Hub Machines Disabled 25 | . . 1 . . 5 . . . . . . . . 6 2 2 9 Max in Single Turn 6 | . . 1 . . 2 . . . . . . . . 4 1 1 6 Garrison Access 5 | . . . . . 1 . . 1 . . . . 3 . . . . Network Hub 1 | . . . . . . . . . . . . . . . . . 1 Energy Cycler 2 | . . . . . . . . . . . . . . 2 . . . Machines Sabotaged . | . . . . . . . . . . . . . . . . . . Garrisons Compromised . | . . . . . . . . . . . . . . . . . . Overloaded Fab Kills . | . . . . . . . . . . . . . . . . . . Fab Network Shutdowns 1 | . . . . . . . . . . . . . 1 . . . . Hacking | -11 -10 -10 -10 -9 -8 -7 -7 -7 -7 -7 -7 -6 -6 -6 -6 -6 -6 --------- Run | Scr Mat Min Exi Min Mat Fac Was Fac Low Low Zio Pro Fac Ext Cet Arc Hub Machines Accessed 68 | . 11 1 1 . 9 14 . 3 . 1 . . 16 7 3 1 1 Terminals 44 | . 8 . . . 6 9 . 1 . . . . 9 7 3 . 1 Fabricators 4 | . . . . . . 1 . 1 . . . . 2 . . . . Repair Stations 5 | . 1 . . . 1 2 . . . . . . 1 . . . . Recycling Units 3 | . 2 . . . 1 . . . . . . . . . . . . Scanalyzers 2 | . . . . . . 1 . . . . . . 1 . . . . Garrison Access 6 | . . . . . 1 1 . 1 . . . . 3 . . . . Total Hacks 188 | . 28 1 1 . 27 36 . 6 . 1 . . 35 19 6 25 3 Successful 107 | . 13 1 1 . 15 20 . 4 . 1 . . 17 7 2 25 1 Failed 80 | . 14 . . . 12 16 . 2 . . . . 18 12 4 . 2 Catastrophic 16 | . 1 . . . 1 3 . . . . . . 7 1 3 . . Database Lockouts 1 | . 1 . . . . . . . . . . . . . . . . Manual 75 | . 15 . 1 . 11 14 . 1 . . . . 17 11 1 1 3 Terminals 110 | . 20 . . . 17 24 . 2 . . . . 19 19 6 . 3 Fabricators 11 | . . . . . . 4 . 3 . . . . 4 . . . . Repair Stations 19 | . 3 . . . 6 3 . . . . . . 7 . . . . Recycling Units 7 | . 5 . . . 2 . . . . . . . . . . . . Scanalyzers 6 | . . . . . . 4 . . . . . . 2 . . . . Garrison Access 7 | . . . . . 2 1 . 1 . . . . 3 . . . . Terminal Hacks 63 | . 7 1 1 . 8 7 . 1 . 1 . . 3 7 2 25 . Record 26 | . . . . . . . . . . . . . . . 1 25 . Part Schematic 2 | . . . . . 1 . . . . . . . 1 . . . . Robot Analysis 3 | . 1 . . . . . . . . . . . . 2 . . . Prototype ID Bank 3 | . 1 . . . 2 . . . . . . . . . . . . Open Door 5 | . . 1 . . . . . . . 1 . . . 2 1 . . Branch Access Points 2 | . . . . . . 1 . . . . . . 1 . . . . Machine Index 2 | . . . . . . 1 . 1 . . . . . . . . . Terminal Index 2 | . 1 . . . . 1 . . . . . . . . . . . Scanalyzer Index 1 | . . . . . . 1 . . . . . . . . . . . Alert Level 2 | . 1 . . . . . . . . . . . . 1 . . . Unreport Threat 5 | . 1 . . . 2 . . . . . . . . 2 . . . Locate Traps 2 | . 1 . . . 1 . . . . . . . . . . . . Recall Extermination 1 | . . . . . . 1 . . . . . . . . . . . Hauler Manifests 2 | . . . . . 1 . . . . . . . 1 . . . . Registered Components 1 | . . . . . . 1 . . . . . . . . . . . Registered Prototypes 1 | . . . . . . 1 . . . . . . . . . . . Zone Layout 2 | . 1 . . . 1 . . . . . . . . . . . . EX-Prototype ID Bank 1 | . . . 1 . . . . . . . . . . . . . . Fabricator Hacks 7 | . . . . . . 3 . 2 . . . . 2 . . . . Load Schematic 3 | . . . . . . 1 . 1 . . . . 1 . . . . Build 4 | . . . . . . 2 . 1 . . . . 1 . . . . Repair Station Hacks 16 | . 2 . . . 5 3 . . . . . . 6 . . . . Scan Component 9 | . 1 . . . 3 2 . . . . . . 3 . . . . Repair 7 | . 1 . . . 2 1 . . . . . . 3 . . . . Recycling Unit Hacks 1 | . . . . . 1 . . . . . . . . . . . . Retrieve Components 1 | . . . . . 1 . . . . . . . . . . . . Scanalyzer 5 | . . . . . . 3 . . . . . . 2 . . . . Insert Component 3 | . . . . . . 2 . . . . . . 1 . . . . Analyze 2 | . . . . . . 1 . . . . . . 1 . . . . Garrison Access Hacks 5 | . . . . . 1 . . 1 . . . . 3 . . . . Seal Access 5 | . . . . . 1 . . 1 . . . . 3 . . . . Unauthorized Hacks 10 | . 4 . . . . 4 . . . . . . 1 . . . 1 Terminals 8 | . 2 . . . . 4 . . . . . . 1 . . . 1 Track 3 | . 2 . . . . . . . . . . . . . . . 1 Assimilate 1 | . . . . . . 1 . . . . . . . . . . . Botnet 4 | . . . . . . 3 . . . . . . 1 . . . . Fabricators . | . . . . . . . . . . . . . . . . . . Repair Stations . | . . . . . . . . . . . . . . . . . . Recycling Units 2 | . 2 . . . . . . . . . . . . . . . . Reject 1 | . 1 . . . . . . . . . . . . . . . . Mask 1 | . 1 . . . . . . . . . . . . . . . . Scanalyzers . | . . . . . . . . . . . . . . . . . . Garrison Access . | . . . . . . . . . . . . . . . . . . Data Cores Recovered . | . . . . . . . . . . . . . . . . . . Used . | . . . . . . . . . . . . . . . . . . Hacking Detections 50 | . 10 . . . 7 11 . 2 . . . . 11 5 3 . 1 Full Trace Events 4 | . 2 . . . . . . . . . . . . 2 . . . Feedback Events . | . . . . . . . . . . . . . . . . . . Feedback Blocked . | . . . . . . . . . . . . . . . . . . Robot Schematics Acquired . | . . . . . . . . . . . . . . . . . . Robots Built . | . . . . . . . . . . . . . . . . . . Matter . | . . . . . . . . . . . . . . . . . . Time . | . . . . . . . . . . . . . . . . . . Total Robot Build Rating . | . . . . . . . . . . . . . . . . . . Part Schematics Acquired 4 | . . . . . 1 1 . . . . . . 2 . . . . Parts Built 5 | . . . . . . 2 . 2 . . . . 1 . . . . Matter 646 | . . . . . . 204 . 190 . . . . 252 . . . . Time 283 | . . . . . . 102 . 47 . . . . 134 . . . . Total Part Build Rating 16 | . . . . . . 2 . 10 . . . . 4 . . . . Parts Repaired 7 | . 1 . . . 2 1 . . . . . . 3 . . . . Time 324 | . 32 . . . 58 60 . . . . . . 174 . . . . Parts Recycled . | . . . . . . . . . . . . . . . . . . Recycled Matter . | . . . . . . . . . . . . . . . . . . Retrieved Matter . | . . . . . . . . . . . . . . . . . . Retrieved Components 9 | . . . . . 9 . . . . . . . . . . . . Parts Scanalyzed 2 | . . . . . . 1 . . . . . . 1 . . . . Part Schematics Acquired 2 | . . . . . . 1 . . . . . . 1 . . . . Parts Damaged . | . . . . . . . . . . . . . . . . . . Bothacking | -11 -10 -10 -10 -9 -8 -7 -7 -7 -7 -7 -7 -6 -6 -6 -6 -6 -6 ------------ Run | Scr Mat Min Exi Min Mat Fac Was Fac Low Low Zio Pro Fac Ext Cet Arc Hub Used RIF Installer . | . . . . . . . . . . . . . . . . . . Robots Hacked . | . . . . . . . . . . . . . . . . . . Non-combat . | . . . . . . . . . . . . . . . . . . Combat . | . . . . . . . . . . . . . . . . . . Robot Hacks Applied . | . . . . . . . . . . . . . . . . . . Relay Couplers Released . | . . . . . . . . . . . . . . . . . . Robots Rewired 1 | . . . . . . . . . . . . . . 1 . . . Allies Hacked . | . . . . . . . . . . . . . . . . . . Hacks Repelled . | . . . . . . . . . . . . . . . . . . Allies | -11 -10 -10 -10 -9 -8 -7 -7 -7 -7 -7 -7 -6 -6 -6 -6 -6 -6 -------- Run | Scr Mat Min Exi Min Mat Fac Was Fac Low Low Zio Pro Fac Ext Cet Arc Hub Total Allies 11 | . . 3 . . . 1 1 . . . . . . 4 2 . . Largest Group 3 | . . 3 . . . 1 1 1 . . . . . 3 2 . . Highest-Rated Group 218 | . . 40 . . . 26 31 26 . . . . . 218 183 . . Highest-Rated Ally 156 | . . 16 . . . 26 31 26 . . . . . 156 94 . . Total Orders . | . . . . . . . . . . . . . . . . . . Ally Attacks 118 | . . 37 . . . . 5 . . . . . . 63 13 . . Total Damage 2985 | . . 375 . . . . 83 . . . . . . 1926 601 . . Kills 18 | . . 6 . . . . . . . . . . . 12 . . . Allies Corrupted . | . . . . . . . . . . . . . . . . . . Allies Melted 1 | . . . . . . . . . . . . . . . 1 . . Intel | -11 -10 -10 -10 -9 -8 -7 -7 -7 -7 -7 -7 -6 -6 -6 -6 -6 -6 ------- Run | Scr Mat Min Exi Min Mat Fac Was Fac Low Low Zio Pro Fac Ext Cet Arc Hub Robot Analysis Total 3 | . 1 . . . . . . . . . . . . 2 . . . Derelict Logs Recovered 5 | . . . . 1 . . . . 1 1 1 1 . . . . . Drone Launches 16 | . . . . . . . . . . . . . . 16 . . . Drone Recoveries . | . . . . . . . . . . . . . . . . . . Exploration | -11 -10 -10 -10 -9 -8 -7 -7 -7 -7 -7 -7 -6 -6 -6 -6 -6 -6 ------------- Run | Scr Mat Min Exi Min Mat Fac Was Fac Low Low Zio Pro Fac Ext Cet Arc Hub Turns Passed 14200 | 71 1897 760 1064 752 3575 1061 24 190 441 219 376 444 1218 735 434 209 730 Spaces Moved 11609 | 30 1028 403 585 405 1243 1616 69 304 604 533 953 810 1614 691 352 100 269 Core 6 | . 1 . . . . . . . . . . . . . . . 5 Treads 3771 | . 927 403 585 405 1004 . . . . . . . . . 83 100 264 Legs 12 | 12 . . . . . . . . . . . . . . . . . Wheels 118 | 18 100 . . . . . . . . . . . . . . . . Hover . | . . . . . . . . . . . . . . . . . . Flight 7702 | . . . . . 239 1616 69 304 604 533 953 810 1614 691 269 . . Fastest Speed 34 | 90 80 160 160 180 160 34 34 34 34 34 39 39 39 39 35 160 50 Average Speed 86 | 102 157 174 179 180 168 40 34 38 38 37 39 39 41 49 74 160 157 Slowest Speed 352 | 120 250 180 180 180 352 50 39 39 39 39 39 39 50 50 160 160 160 Overloaded Moves . | . . . . . . . . . . . . . . . . . . Propulsion Burnouts . | . . . . . . . . . . . . . . . . . . Robots Hopped 41 | . . . . . . 7 . . 3 2 . . 13 12 4 . . Cave-ins Triggered . | . . . . . . . . . . . . . . . . . . Exploration Rate (%) 61 | 4 96 62 78 79 75 38 79 10 65 58 81 75 36 76 88 75 31 Regions Visited 17 Branch Regions 11 Pre-discovered Areas 3 | . . . . . . . . . . . 3 . . . . . . Known Exits Taken 10 | . . . . 1 . . . 1 1 1 1 1 1 1 1 1 . Unknown Exits Taken 5 | 1 1 1 1 . 1 . . . . . . . . . . . . Scrap Searched 15 | . . 2 . 2 . . . . 2 1 3 5 . . . . . Spaces Dug 140 | . 7 . . . 42 13 . 1 14 . . 3 27 11 22 . . Terrain Destroyed 610 | . 29 51 . . 120 14 . 1 23 . . 3 35 45 64 2 223 Melee 13 | . . . . . . 2 . . 4 . . . 6 1 . . . Projectile 101 | . 1 . . . . 12 . 1 12 . . 3 29 15 5 2 21 AOE 496 | . 28 51 . . 120 . . . 7 . . . . 29 59 . 202 Terrain Rammed . | . . . . . . . . . . . . . . . . . . Walls Destroyed . | . . . . . . . . . . . . . . . . . . Machines Disabled . | . . . . . . . . . . . . . . . . . . Actions | -11 -10 -10 -10 -9 -8 -7 -7 -7 -7 -7 -7 -6 -6 -6 -6 -6 -6 --------- Run | Scr Mat Min Exi Min Mat Fac Was Fac Low Low Zio Pro Fac Ext Cet Arc Hub Total 15064 | 60 1240 443 601 418 2588 1972 68 374 764 547 956 912 2071 1009 485 127 429 Wait 2615 | 17 73 5 3 1 1180 263 . 68 123 17 . 80 375 266 82 . 62 Move 11517 | 29 1027 402 584 404 1242 1603 68 303 598 528 952 809 1588 668 344 99 269 Hop 35 | . . . . . . 6 . . 2 2 . . 12 10 3 . . Pick Up 90 | 2 25 11 3 1 13 15 . . . . . . 11 2 2 3 2 Fast Attach 76 | 1 11 4 1 1 15 10 . . 1 . 2 . 8 1 14 4 3 Attach 36 | 2 1 . 4 . 9 3 . . . . . . 3 3 5 2 4 Detach 14 | . 5 . . . 2 . . . . . . . 2 1 3 1 . Swap 86 | 1 12 2 . 1 17 8 . 1 10 . . 10 9 12 1 . 2 Drop 139 | 3 30 4 6 3 29 25 . 1 . . 2 . 16 4 7 3 6 Fire 364 | 5 39 11 . 5 66 19 . 1 26 . . 13 31 36 24 15 73 Melee 35 | . . . . . . 14 . . 4 . . . 16 1 . . . Ram 1 | . . . . . 1 . . . . . . . . . . . . Kick . | . . . . . . . . . . . . . . . . . . Crush 45 | . 17 4 . 2 14 . . . . . . . . . . . 8 Escape Stasis 6 | . . . . . . 6 . . . . . . . . . . . Rewire 5 | . . . . . . . . . . . . . . 5 . . . Trap . | . . . . . . . . . . . . . . . . . . Miscellaneous . | . . . . . . . . . . . . . . . . . . Route ------- -11/Scrapyard -10/Materials (discovered 4 exits: [*Mat x3] / *Min) -10/Mines (discovered 3 exits: [*Mat x2] / *Exi) -10/Exiles -9/Mines -8/Materials (discovered 2 exits: *Fac x2) -7/Factory (discovered 4 exits: Sto x2 / *Low x2) -7/Waste -7/Factory -7/Lower Caves -7/Lower Caves (discovered 2 exits: *Fac / *Zio) -7/Zion -6/Proximity Caves -6/Factory (discovered 6 exits: *Fac x2 / *Low x2 / *Ext x2) -6/Extension (discovered 3 exits: *Fac x2 / *Cet) -6/Cetus (discovered 2 exits: *Fac / *Arc) -6/Archives (discovered 2 exits: *Hub x2) -6/Hub_04(d) (discovered 1 exit: *Fac) History --------- Turn | Location | Event 14 | -11/Scrapyard | Discovered new exit (range 3) 72 | -11/Scrapyard | Entered Materials 274 | -10/Materials | Central database locked down 320 | -10/Materials | Build established: Mutant 494 | -10/Materials | Discovered new exit (range 5) 659 | -10/Materials | Discovered new exit (range 11) 940 | -10/Materials | Discovered new exit (range 16) 1018 | -10/Materials | Core integrity fell below 50% 1724 | -10/Materials | Repaired Hvy. Assault Rifle 1936 | -10/Materials | Discovered new exit (range 9) 1969 | -10/Materials | Entered Mines 1973 | -10/Mines | Discovered new exit (range 10) 1984 | -10/Mines | Assisted by bots powering up and referring to "LRC-V3" 2113 | -10/Mines | Deemed a non-threat by the Exiles lab entrance 2245 | -10/Mines | Discovered new exit (range 16) 2251 | -10/Mines | Found the Drone Emporium 2262 | -10/Mines | Found Prototype Device 2262 | -10/Mines | Identified Bomb Drone Bay 2554 | -10/Mines | Assembled infested the area 2574 | -10/Mines | Core integrity fell below 20% 2603 | -10/Mines | Destroyed 15 combat bots 2723 | -10/Mines | Discovered new exit (range 5) 2729 | -10/Mines | Entered Exiles 2772 | -10/Exiles | Met 8R-AWN 2803 | -10/Exiles | Met EX-HEX 2855 | -10/Exiles | Met EX-BIN 2936 | -10/Exiles | Aligned with FarCom system 2938 | -10/Exiles | Given EX-Vault access code 2979 | -10/Exiles | Opened EX-Vault 2995 | -10/Exiles | Found Flying Fortress v7 3039 | -10/Exiles | Warned to stay clear of 0b10 Research branches 3089 | -10/Exiles | Met EX-DEC 3189 | -10/Exiles | Visited The Gauntlet 3575 | -10/Exiles | Found Firepult 3768 | -10/Exiles | Discovered new exit (range 14) 3793 | -10/Exiles | Stole two prototypes: Flying Fortress v7, Firepult 3793 | -10/Exiles | Entered Mines 3934 | -9/Mines | Identified exit to Materials 3939 | -9/Mines | Received a Rocket Launcher from a helpful Derelict 4545 | -9/Mines | Entered Materials 4545 | -8/Materials | Evolved 4 slots: Propulsion x2, Utility x2 5246 | -8/Materials | Discovered new exit (range 18) 5444 | -8/Materials | Repaired Lgt. EM Pulse Cannon 5472 | -8/Materials | Repaired Lgt. Armor Plating 6534 | -8/Materials | Discovered new exit (range 16) 7404 | -8/Materials | Core integrity fell below 50% 8120 | -8/Materials | Entered Factory 8120 | -7/Factory | Evolved 2 slots: Propulsion x2 8122 | -7/Factory | FarCom data flow suspended 8220 | -7/Factory | Identified exit to Storage 8220 | -7/Factory | Identified exit to Lower Caves 8378 | -7/Factory | Repaired Hvy. Particle Gun 8495 | -7/Factory | Fabricated Hcp. Storage Unit? 8595 | -7/Factory | Fabricated Hcp. Storage Unit (x1) 9181 | -7/Factory | Manually triggered Chute Trap 9181 | -7/Factory | Sucked down chute 9181 | -7/Factory | Entered Waste 9182 | -7/Waste | Met a frightened Derelict 9185 | -7/Waste | Spotted C-40 Crusher 9189 | -7/Waste | Spotted C-40 Crusher 9189 | -7/Waste | Spotted C-40 Crusher 9196 | -7/Waste | EMP discharged 9196 | -7/Waste | System corruption reached 10% 9198 | -7/Waste | Spotted C-40 Crusher 9198 | -7/Waste | Spotted C-40 Crusher 9201 | -7/Waste | Spotted C-40 Crusher 9201 | -7/Waste | Discovered new exit (range 11) 9204 | -7/Waste | Identified exit to Factory 9205 | -7/Waste | Entered Factory 9220 | -7/Factory | 1 allies followed down the chute 9316 | -7/Factory | Fabricated Lgt. Fission Core (x2) 9358 | -7/Factory | Discovered exit to Lower Caves (range 15) 9395 | -7/Factory | Entered Lower Caves 9481 | -7/Lower Caves | Learned Factory trap positions 9543 | -7/Lower Caves | Attracted the attention of an 0b10 checkpoint 9573 | -7/Lower Caves | Spotted B-75 Beast 9833 | -7/Lower Caves | Discovered new exit (range 6) 9835 | -7/Lower Caves | Identified exit to Lower Caves 9836 | -7/Lower Caves | Entered another Lower Caves area 9848 | -7/Lower Caves | Discovered new exit (range 10) 10024 | -7/Lower Caves | Learned Factory terminal intel 10050 | -7/Lower Caves | Discovered new exit (range 15) 10055 | -7/Lower Caves | Identified exit to Zion 10055 | -7/Lower Caves | Entered Zion 10065 | -7/Zion | Acquired unknown access codes intercepted by a Zionite 10074 | -7/Zion | System corruption cleaned by Quarantine Array 10094 | -7/Zion | Discovered new exit (range 11) 10099 | -7/Zion | Learned location of Warlord (-5) 10155 | -7/Zion | Received a hallucinogenic algorithm 10205 | -7/Zion | Given A8's code to call for help 10242 | -7/Zion | Learned location of 1 exit from Factory 10244 | -7/Zion | Learned location of Recycling (-7) 10264 | -7/Zion | Learned location of Armory (-3) 10349 | -7/Zion | Learned Factory scanalyzer intel 10430 | -7/Zion | Identified exit to Proximity Caves 10431 | -7/Zion | Entered Proximity Caves 10540 | -6/Proximity Caves | Attracted the attention of an 0b10 checkpoint 10627 | -6/Proximity Caves | Learned Factory machine intel 10709 | -6/Proximity Caves | Spotted B-75 Beast 10869 | -6/Proximity Caves | Discovered new exit (range 14) 10874 | -6/Proximity Caves | Identified exit to Factory 10875 | -6/Proximity Caves | Entered Factory 10875 | -6/Factory | Evolved 2 slots: Utility x2 10876 | -6/Factory | Identified exit to Factory 10877 | -6/Factory | Loaded intel: 77 trap records 10878 | -6/Factory | Loaded intel: 254 machine locations 10879 | -6/Factory | Loaded intel: 21 terminal locations 10880 | -6/Factory | Loaded intel: 4 scanalyzer locations 10928 | -6/Factory | Identified exit to Lower Caves 10928 | -6/Factory | Identified exit to Extension 11112 | -6/Factory | Fabricated Cld. Deuterium Engine (x1) 11246 | -6/Factory | Repaired Cld. Particle Cannon 11274 | -6/Factory | Local fabrication network quarantined 11308 | -6/Factory | Repaired Adv. EMP Blaster 11353 | -6/Factory | Repaired Proton Missile Launcher 11544 | -6/Factory | Found Launcher Loader 11936 | -6/Factory | Discovered exit to Factory (range 16) 12093 | -6/Factory | Entered Extension 12285 | -6/Extension | Rescued A7 12314 | -6/Extension | Rescued a captive Derelict 12314 | -6/Extension | Rescued a captive Derelict 12408 | -6/Extension | Energy Cycler disabled 12409 | -6/Extension | Rescued a captive Derelict 12409 | -6/Extension | Rescued a captive Derelict 12409 | -6/Extension | Rescued a captive Derelict 12409 | -6/Extension | Rescued a captive Derelict 12411 | -6/Extension | Rescued a captive Derelict 12415 | -6/Extension | Rescued a captive Derelict 12416 | -6/Extension | Rescued a captive Derelict 12424 | -6/Extension | Rescued a captive Derelict 12569 | -6/Extension | Spotted B-75 Beast 12593 | -6/Extension | Disrupted transfer network 12601 | -6/Extension | Spotted B-75 Beast 12605 | -6/Extension | Discovered exit to Factory (range 16) 12627 | -6/Extension | Extracted ID and sensor layout for unrecognized location from A7's data core 12819 | -6/Extension | Discovered exit to Factory (range 10) 12820 | -6/Extension | Discovered new exit (range 6) 12827 | -6/Extension | Identified exit to Cetus 12828 | -6/Extension | Entered Cetus 12836 | -6/Cetus | Spotted Cetus Guard 12836 | -6/Cetus | Spotted Cetus Guard 12836 | -6/Cetus | Spotted Cetus Guard 12846 | -6/Cetus | Spotted Cetus Guard 12885 | -6/Cetus | Enhanced Grunt warped into view, answering call for help 12886 | -6/Cetus | Enhanced Grunt warped into view, answering call for help 12897 | -6/Cetus | Cetus Manufacturing Module disabled 12902 | -6/Cetus | Destroyed Cetus Guard 12923 | -6/Cetus | Found Prototype Device 12923 | -6/Cetus | Identified Exp. Thermal Shield 12929 | -6/Cetus | Discovered new exit (range 15) 12968 | -6/Cetus | Destroyed Cetus Guard 12970 | -6/Cetus | Destroyed Cetus Guard 12970 | -6/Cetus | Destroyed Cetus Guard 12973 | -6/Cetus | Core integrity fell below 50% 12991 | -6/Cetus | Lost 8 parts (1p1n4u2w) 13062 | -6/Cetus | Spotted Cetus Guard 13106 | -6/Cetus | Spotted Cetus Guard 13107 | -6/Cetus | Spotted Cetus Guard 13108 | -6/Cetus | Destroyed Cetus Guard 13108 | -6/Cetus | Spotted Cetus Guard 13110 | -6/Cetus | Destroyed Cetus Guard 13110 | -6/Cetus | Destroyed Cetus Guard 13111 | -6/Cetus | Destroyed Cetus Guard 13172 | -6/Cetus | Discovered exit to Factory (range 15) 13180 | -6/Cetus | Met Revision 17 13260 | -6/Cetus | Identified exit to Archives 13262 | -6/Cetus | Entered Archives 13283 | -6/Archives | Build established: Scavenger-Mutant 13326 | -6/Archives | Unable to access archive contents 13364 | -6/Archives | Lost 3 parts (1p1u1w) 13367 | -6/Archives | Unable to access archive contents 13373 | -6/Archives | Discovered new exit (range 15) 13395 | -6/Archives | Unable to access archive contents 13402 | -6/Archives | Discovered new exit (range 14) 13470 | -6/Archives | Identified exit to Hub_04(d) 13471 | -6/Archives | Entered Hub_04(d) 13591 | -6/Hub_04(d) | Discovered exit to Factory (range 13) 13764 | -6/Hub_04(d) | Disrupted transfer network 14049 | -6/Hub_04(d) | Garrison activated, responded to threat 14113 | -6/Hub_04(d) | Network Hub disabled 14119 | -6/Hub_04(d) | Spotted Lightning 14124 | -6/Hub_04(d) | Spotted Lightning 14127 | -6/Hub_04(d) | Spotted Lightning 14128 | -6/Hub_04(d) | Destroyed Lightning 14141 | -6/Hub_04(d) | Spotted Lightning 14148 | -6/Hub_04(d) | System corruption reached 10% 14161 | -6/Hub_04(d) | Spotted Lightning 14162 | -6/Hub_04(d) | Destroyed Lightning 14162 | -6/Hub_04(d) | Spotted Lightning 14164 | -6/Hub_04(d) | Spotted Lightning 14166 | -6/Hub_04(d) | Spotted Lightning 14170 | -6/Hub_04(d) | Spotted Lightning 14179 | -6/Hub_04(d) | Garrison activated, responded to threat 14195 | -6/Hub_04(d) | System corruption reached 30% 14197 | -6/Hub_04(d) | Core integrity fell below 20% 14197 | -6/Hub_04(d) | Spotted Lightning 14197 | -6/Hub_04(d) | Spotted Lightning 14197 | -6/Hub_04(d) | Spotted Lightning 14199 | -6/Hub_04(d) | Released all parts (8) 14201 | -6/Hub_04(d) | Destroyed by Lightning with EMDS Last Messages --------------- 14189_ Penetrated by EMDS Slug. 14189_ EMDS Slug penetrates Earth. 14190_ System corrupted: Matter fused (-8). 14190_ System corrupted: Lrn. Missile Launcher targeting data glitched. 14190_ Destroyed Com. Wheel. 14190_ Destroyed Power Amplifier. 14190_ Destroyed Com. Wheel. 14190_ Destroyed Power Amplifier. 14190_ Destroyed Com. Battery. 14193_ Imp. Medium Armor Plating destroyed. 14193_ Penetrated by EMDS Slug. 14199_ Released Cld. Deuterium Engine. 14199_ Released Imp. Armor Integrity Analyzer. 14199_ Released Hcp. Storage Unit. 14199_ Released Enh. Optical Array. 14199_ Released Imp. KE Penetrator. 14199_ Released Centrium Heavy Treads. 14199_ Released Imp. Medium Armor Plating. 14199_ Released Lrn. Missile Launcher. 14200_ Penetrated by EMDS Slug. Map ----- +----------------------------------------------------+ | ?????????????????????????????????????????? | | ?????????????????????????????????????????? | | ?????????????????????????????????????????? | | ?????????????????????????????????????????? | | ?????????????????????????????????????????? | | ?????????????????????????????????????????? | | ?????????????????????????????????????????? | | ?????????????????????????????????????????? | | ?????????????????????????????????????????? | | ?????????????????????????????????????????? | | ???????????????####??????????????????????? | | ????????????? ##????????????????????? | | ?????????? #????????????????????? | | ????????;;;;;;;;;; #????????????????????? | | ??????; ; #????????????????????? | | ??????; ; ###??????????????????? | | ????? ; ; ???????????????????? | | ????? ; ;;;;;???????????######### | | ???? ; k ????????????# | | ???? ; g ????????????# | | ???# ; g= ##???????????# | | ???# ; !s #???????????# ! | | ???# ; g #???????????# | | ???# ; h #???????????# | | ???# ; h hh #???????????# | | ???#;;;;; i]h ih@ #???????????? ! | | ??##; #??#??????????? ? | | ??# ; = == ##################+### | | ??# ; =h*% [!=! | | ???#; ;%[ !!|%|= % % | | ??##; % %* ]!*!|! [ | | ??# ; ;;; ;;=!#################### | | ??# ; !!#??????????????????? | | ???# ; #??????????????????? | | # !%! ; = #??????????????????? | | ??# ! ;;;;; ;#?????????????????? | | ??## ; ; ; ; #????????????????? | | ???# # ###### ; #????????????????? | | ???????????? / " ; #???????????????? | | ???????????### "" " #???????????????? | | ?????????????# " ##???????????????? | | ?????????????########"" ????????????????? | | ????????????????????? #???????????????? | | ????????????????????? #???????????????? | | ?????????????????????# ???????????????? | | ?????????????????????? ###??????????????? | | ?????????????????????? ##????????????????? | | ??????????????????????##?????????????????? | | ?????????????????????????????????????????? | | ?????????????????????????????????????????? | +----------------------------------------------------+ Best States ------------- Heat Dissipation 75 Energy Generation 21 Energy Capacity 325 Matter Stores 420 Matter Capacity 450 Sight Range 22 Robot Scan Range 16 Terrain Scan Range 16 Terrain Scan Density 10 Jamming Range 12 Armor Coverage 900 Resistance: KI 20 Resistance: EM 25 Evasion (%) 63 Armor Integrity Analysis 50 Recoil Reduction 6 Item Schematics ----------------- Hcp. Storage Unit | -8/Materials | Hacked Cld. Deuterium Engine | -7/Factory | Scanalyzed Cld. VTOL Module | -6/Factory | Hacked Launcher Loader | -6/Factory | Scanalyzed Robot Schematics ------------------ None Fabricated ------------ Hcp. Storage Unit | x1 | -7/Factory Hcp. Storage Unit | x1 | -7/Factory Lgt. Fission Core | x2 | -7/Factory | Preloaded Cld. Deuterium Engine | x1 | -6/Factory Alien Tech Used ----------------- None Achievements -------------- None Challenges ------------ None Game ------ Seed ShockMyomerInterpreter Manual? 0 Play Time 02:34:18 Cumulative 267.4 hours Start 2021.08.30 @ 04:08:03 End 2021.08.30 @ 06:43:33 Sessions 1 Manual Loads 0 Difficulty Rogue Special Mode None Game No. 188 Rogue 188 Adventurer 0 Explorer 0 Win Type - Total 5 Types 5/0/0/0/0/0/0/0/0 Lore% 51 Gallery% 73 Achievement% 58 Wizard Run 0 Options --------- ASCII 0 Keyboard 0 Movement Numpad Keybinds 0 Fullscreen 2 Font 18/TerminusBold Map View 76x50 Tactical HUD 1 Map Filters NONE Filters NONE Steam 1 RUN: 2db87abb-efd4-4efa-a85b-58541aefa17b